[Event "Summer Prague Open-A 2022"]
[Site "Prague"]
[Date "2022.08.07"]
[Round "4.16"]
[White "Soural, Jan"]
[Black "Sorm, Daniel"]
[Result "1/2-1/2"]
[ECO "A20"]
[WhiteElo "2119"]
[BlackElo "2308"]
[Annotator "RC"]
[PlyCount "89"]
[EventDate "2022.08.05"]
[EventType "swiss"]
[EventCountry "CZE"]
[SourceTitle "playchess.com"]
[Source "ChessBase"]
[SourceQuality "1"]
[TimeControl "40/5400+30:1800+30"]

1. c4 {[%emt 0:00:02]} e5 {[%emt 0:02:37]} 2. Nf3 {[%emt 0:00:17]} Nc6 {[%emt 0:00:45]} 3. d4 {[%emt 0:00:16]} exd4 {[%emt 0:00:40]} 4. Nxd4 {[%emt 0:00:07]} Nf6 {[%emt 0:05:57]} 5. Nxc6 {[%emt 0:00:58]} bxc6 {[%emt 0:00:07]} 6. g3 {[%emt 0:00:06]} Bc5 {[%emt 0:02:31]} 7. Bg2 {[%emt 0:01:31]} O-O {[%emt 0:00:27]} 8. O-O {[%emt 0:00:16]} d5 {[%emt 0:07:32]} 9. Nc3 {[%emt 0:13:13]} Be6 {[%emt 0:01:18]} 10. Qa4 {[%emt 0:06:23]} Bb6 {[%emt 0:12:05]} 11. Bg5 {[%emt 0:17:10]} h6 {[%emt 0:01:19]} 12. Bxf6 {[%emt 0:02:08]} Qxf6 {[%emt 0:00:07]} 13. Qxc6 {[%emt 0:04:50]} dxc4 {[%emt 0:02:05]} 14. Bd5 {[%emt 0:08:57]} Bd4 {[%emt 0:09:04]} 15. Qxc4 {[%emt 0:04:12]} Bxc3 {[%emt 0:01:32]} 16. bxc3 {[%emt 0:00:15]} Bxd5 {[%emt 0:00:25]} 17. Qxd5 {[%emt 0:00:11]} Qxc3 {[%emt 0:00:15]} 18. Rac1 {[%emt 0:02:02]} Qb2 {[%emt 0:00:53]} 19. Rxc7 {[%emt 0:05:30]} Rad8 {[%emt 0:00:11]} 20. Qb3 {[%emt 0:05:14]} Qxb3 {[%emt 0:02:52]} 21. axb3 {[%emt 0:00:06]} Rb8 {[%emt 0:00:09]} 22. Ra1 {[%emt 0:01:00]} Rxb3 {[%emt 0:00:06]} 23. Raxa7 {[%emt 0:00:07]} Rb2 {[%emt 0:00:48]} 24. e3 {[%emt 0:00:26]} g5 {[%emt 0:03:54]} 25. g4 {[%emt 0:03:08]} Rb4 {[%emt 0:01:37]} 26. h3 {[%emt 0:01:15]} Rb6 {[%emt 0:03:00]} 27. Kg2 {[%emt 0:04:46]} Rf6 {[%emt 0:01:12]} 28. Ra5 {[%emt 0:01:44]} Re8 {[%emt 0:01:21]} 29. Rcc5 {[%emt 0:01:14]} Kg7 {[%emt 0:03:07]} 30. Rf5 {[%emt 0:00:52]} Rfe6 {[%emt 0:00:41]} 31. Kg3 {[%emt 0:01:11]} R8e7 {[%emt 0:00:19]} 32. Ra8 {[%emt 0:01:46]} Re8 {[%emt 0:02:52]} 33. Raa5 {[%emt 0:01:19]} R8e7 {[%emt 0:00:41]} 34. h4 {[%emt 0:00:39]} gxh4+ {[%emt 0:00:10]} 35. Kxh4 {[%emt 0:00:07]} Rf6 {[%emt 0:05:05]} 36. Rxf6 {[%emt 0:01:58]} Kxf6 {[%emt 0:00:12]} 37. Ra6+ {[%emt 0:00:07]} Kg7 {[%emt 0:00:06]} 38. Kg3 {[%emt 0:00:14]} Re5 {[%emt 0:01:36]} 39. Kf4 {[%emt 0:02:31]} f6 {[%emt 0:01:50]} 40. e4 {[%emt 0:03:34]} h5 {[%emt 0:01:42]} 41. gxh5 {[%emt 0:30:17]} Rxh5 {[%emt 0:30:12]} 42. f3 {[%emt 0:00:33]} Rb5 {[%emt 0:00:33]} 43. Rd6 {[%emt 0:00:17]} Kg6 {[%emt 0:01:41]} 44. Rd5 {[%emt 0:01:23]} Rb3 {[%emt 0:00:17]} 45. Rc5 {[%emt 0:00:19]} 1/2-1/2

[Event "Summer Prague Open-A 2022"]
[Site "Prague"]
[Date "2022.08.07"]
[Round "4.17"]
[White "Hajiyev, Kanan"]
[Black "Brejnik, Gustav"]
[Result "0-1"]
[ECO "D10"]
[WhiteElo "2142"]
[BlackElo "2292"]
[Annotator "RC"]
[PlyCount "106"]
[EventDate "2022.08.05"]
[EventType "swiss"]
[EventCountry "CZE"]
[SourceTitle "playchess.com"]
[Source "ChessBase"]
[SourceQuality "1"]
[TimeControl "40/5400+30:1800+30"]

1. d4 {[%emt 0:00:09]} d5 {[%emt 0:00:08]} 2. c4 {[%emt 0:00:14]} c6 {[%emt 0:00:02]} 3. cxd5 {[%emt 0:00:02]} cxd5 {[%emt 0:00:03]} 4. Nc3 {[%emt 0:00:04]} Nf6 {[%emt 0:00:08]} 5. Nf3 {[%emt 0:00:24]} Nc6 {[%emt 0:00:06]} 6. Bg5 {[%emt 0:00:01]} Ne4 {[%emt 0:00:55]} 7. Bf4 {[%emt 0:00:02]} Qa5 {[%emt 0:01:56]} 8. Qb3 {[%emt 0:00:14]} e6 {[%emt 0:11:23]} 9. e3 {[%emt 0:01:01]} Bb4 {[%emt 0:05:57]} 10. Rc1 {[%emt 0:00:10]} O-O {[%emt 0:00:05]} 11. Bd3 {[%emt 0:00:08]} Nxc3 {[%emt 0:02:14]} 12. bxc3 {[%emt 0:00:02]} Ba3 {[%emt 0:00:06]} 13. Rb1 {[%emt 0:00:04]} h6 {[%emt 0:03:56]} 14. O-O {[%emt 0:03:31]} b6 {[%emt 0:08:04]} 15. c4 {[%emt 0:03:54]} dxc4 {[%emt 0:11:06]} 16. Qxc4 Nb4 {[%emt 0:03:55]} 17. Be4 {[%emt 0:26:06]} Ba6 {[%emt 0:02:24]} 18. Qb3 {[%emt 0:00:33]} Nd5 {[%emt 0:08:53]} 19. Bd3 {[%emt 0:22:19]} Bxd3 {[%emt 0:05:21]} 20. Qxd3 {[%emt 0:00:13]} Nxf4 {[%emt 0:00:04]} 21. exf4 {[%emt 0:00:11]} Bd6 {[%emt 0:00:05]} 22. Rb2 {[%emt 0:02:28]} Bxf4 {[%emt 0:01:16]} 23. g3 {[%emt 0:00:14]} Bd6 {[%emt 0:00:31]} 24. Rc2 {[%emt 0:00:41]} Rac8 {[%emt 0:00:41]} 25. Rfc1 {[%emt 0:00:06]} Rxc2 {[%emt 0:00:25]} 26. Qxc2 {[%emt 0:05:50]} Qd5 {[%emt 0:04:51]} 27. Qc6 {[%emt 0:00:00]} Qxc6 {[%emt 0:00:23]} 28. Rxc6 {[%emt 0:00:02]} Rd8 {[%emt 0:00:07]} 29. Kf1 {[%emt 0:00:04]} Kf8 {[%emt 0:00:38]} 30. Ke2 {[%emt 0:00:02]} Ke7 {[%emt 0:00:19]} 31. Kd3 {[%emt 0:00:33]} Kd7 {[%emt 0:03:15]} 32. Rc2 {[%emt 0:00:39]} Rc8 {[%emt 0:00:05]} 33. Rb2 {[%emt 0:06:05]} Rc1 {[%emt 0:00:50]} 34. Kd2 {[%emt 0:03:03]} Rc4 {[%emt 0:01:12]} 35. Kd3 {[%emt 0:00:19]} Ra4 {[%emt 0:00:23]} 36. Nd2 {[%emt 0:04:29]} Ra3+ {[%emt 0:06:06]} 37. Ke2 {[%emt 0:00:38]} Rc3 {[%emt 0:01:27]} 38. Ne4 {[%emt 0:00:42]} Rc1 {[%emt 0:03:37]} 39. Kd2 {[%emt 0:00:59]} Rh1 {[%emt 0:02:46]} 40. h4 {[%emt 0:01:11]} f5 {[%emt 0:00:26]} 41. Nxd6 {[%emt 0:33:30]} Kxd6 {[%emt 0:32:23]} 42. Rc2 {[%emt 0:00:02]} Ra1 {[%emt 0:08:05]} 43. Kc3 {[%emt 0:03:07]} Kd5 {[%emt 0:03:17]} 44. Re2 {[%emt 0:00:57]} Rc1+ {[%emt 0:00:38]} 45. Kd2 {[%emt 0:02:39]} Rc4 {[%emt 0:00:00]} 46. Re5+ {[%emt 0:00:00]} Kxd4 {[%emt 0:00:00]} 47. Rxe6 {[%emt 0:00:00]} Ra4 {[%emt 0:00:00]} 48. Rg6 {[%emt 0:00:00]} Rxa2+ {[%emt 0:00:00]} 49. Kc1 {[%emt 0:00:00]} Rxf2 {[%emt 0:00:00]} 50. Rxg7 {[%emt 0:00:00]} a5 {[%emt 0:00:00]} 51. Rg6 {[%emt 0:00:00]} b5 {[%emt 0:00:00]} 52. Rxh6 {[%emt 0:00:00]} a4 {[%emt 0:00:00]} 53. h5 {[%emt 0:00:00]} a3 {[%emt 0:00:00]} 0-1

[Event "Summer Prague Open-A 2022"]
[Site "Prague"]
[Date "2022.08.07"]
[Round "4.18"]
[White "Santagati, Alessandro"]
[Black "Gorkiewicz, Mateusz"]
[Result "1-0"]
[ECO "A45"]
[WhiteElo "2299"]
[BlackElo "2023"]
[Annotator "RC"]
[PlyCount "61"]
[EventDate "2022.08.05"]
[EventType "swiss"]
[EventCountry "CZE"]
[SourceTitle "playchess.com"]
[Source "ChessBase"]
[SourceQuality "1"]
[TimeControl "40/5400+30:1800+30"]

1. d4 {[%emt 0:00:03]} Nf6 {[%emt 0:00:10]} 2. Bf4 {[%emt 0:00:04]} e6 {[%emt 0:00:19]} 3. e3 {[%emt 0:00:08]} d5 {[%emt 0:00:07]} 4. Nf3 {[%emt 0:00:03]} c5 {[%emt 0:00:12]} 5. c3 {[%emt 0:00:28]} Nc6 {[%emt 0:00:17]} 6. Nbd2 {[%emt 0:00:10]} Bd6 {[%emt 0:00:18]} 7. Bg3 {[%emt 0:00:07]} O-O {[%emt 0:00:17]} 8. Bd3 {[%emt 0:00:05]} b6 {[%emt 0:00:22]} 9. e4 {[%emt 0:01:32]} Be7 {[%emt 0:00:42]} 10. e5 {[%emt 0:00:12]} Nh5 {[%emt 0:00:38]} 11. h4 {[%emt 0:09:10]} g6 {[%emt 0:13:18]} 12. Bh2 {[%emt 0:03:47]} f5 {[%emt 0:11:13]} 13. exf6 {[%emt 0:03:40]} Bxf6 {[%emt 0:06:12]} 14. g4 {[%emt 0:03:20]} Ng7 {[%emt 0:00:15]} 15. h5 {[%emt 0:05:33]} gxh5 {[%emt 0:07:29]} 16. Qc2 {[%emt 0:02:10]} hxg4 {[%emt 0:10:28]} 17. Bxh7+ {[%emt 0:00:43]} Kf7 {[%emt 0:00:27]} 18. Qg6+ {[%emt 0:05:30]} Ke7 {[%emt 0:00:09]} 19. Ne5 {[%emt 0:01:20]} Bxe5 {[%emt 0:02:56]} 20. dxe5 {[%emt 0:00:57]} Nf5 {[%emt 0:00:37]} 21. Bf4 {[%emt 0:02:34]} Kd7 {[%emt 0:04:11]} 22. Qxg4 {[%emt 0:00:35]} Nce7 {[%emt 0:03:27]} 23. O-O-O {[%emt 0:02:12]} Rf7 {[%emt 0:03:11]} 24. Ne4 {[%emt 0:02:04]} Kc7 {[%emt 0:01:27]} 25. Nd6 {[%emt 0:08:35]} Rf8 {[%emt 0:01:06]} 26. Bxf5 {[%emt 0:01:05]} Nxf5 {[%emt 0:01:38]} 27. Rh7+ {[%emt 0:00:56]} Bd7 {[%emt 0:01:46]} 28. Nxf5 {[%emt 0:01:49]} exf5 {[%emt 0:00:37]} 29. Qg6 {[%emt 0:02:56]} Kc8 {[%emt 0:00:58]} 30. Rxd5 {[%emt 0:01:01]} Rg8 {[%emt 0:00:49]} 31. Rhxd7 {[%emt 0:00:49]} 1-0

[Event "Summer Prague Open-A 2022"]
[Site "Prague"]
[Date "2022.08.07"]
[Round "4.19"]
[White "Sidletskyi, Ivan"]
[Black "Kvaloy, Aksel Bu"]
[Result "0-1"]
[ECO "C55"]
[WhiteElo "2075"]
[BlackElo "2289"]
[Annotator "RC"]
[PlyCount "52"]
[EventDate "2022.08.05"]
[EventType "swiss"]
[EventCountry "CZE"]
[SourceTitle "playchess.com"]
[Source "ChessBase"]
[SourceQuality "1"]
[TimeControl "40/5400+30:1800+30"]

1. e4 {[%emt 0:02:32]} e5 {[%emt 0:00:49]} 2. Nf3 {[%emt 0:00:47]} Nc6 {[%emt 0:00:14]} 3. Bc4 {[%emt 0:00:42]} Nf6 {[%emt 0:00:24]} 4. d4 {[%emt 0:01:20]} exd4 {[%emt 0:00:39]} 5. e5 {[%emt 0:00:46]} d5 {[%emt 0:00:23]} 6. Bb5 {[%emt 0:00:31]} Ne4 {[%emt 0:00:16]} 7. Nxd4 {[%emt 0:00:51]} Bd7 {[%emt 0:00:20]} 8. Bxc6 {[%emt 0:01:00]} bxc6 {[%emt 0:00:51]} 9. O-O {[%emt 0:03:24]} Bc5 {[%emt 0:00:42]} 10. f3 {[%emt 0:00:43]} Ng5 {[%emt 0:00:15]} 11. Be3 {[%emt 0:00:36]} O-O {[%emt 0:00:37]} 12. f4 {[%emt 0:05:58]} f6 {[%emt 0:01:51]} 13. exf6 {[%emt 0:23:26]} Nh3+ {[%emt 0:01:20]} 14. Kh1 {[%emt 0:11:42]} Qxf6 {[%emt 0:02:04]} 15. c3 {[%emt 0:07:20]} Rae8 {[%emt 0:09:34]} 16. Qd2 {[%emt 0:06:42]} Qe5 {[%emt 0:08:56]} 17. Re1 {[%emt 0:03:18]} Nxf4 {[%emt 0:30:15]} 18. Na3 {[%emt 0:00:26]} Bd6 {[%emt 0:07:38]} 19. Bg1 {[%emt 0:03:52]} Qh5 {[%emt 0:01:16]} 20. Nac2 {[%emt 0:00:46]} c5 {[%emt 0:03:14]} 21. Nb3 {[%emt 0:00:48]} Bh3 {[%emt 0:04:14]} 22. Rxe8 {[%emt 0:02:25]} Bxg2+ {[%emt 0:07:44]} 23. Qxg2 {[%emt 0:00:06]} Nxg2 {[%emt 0:00:03]} 24. Rxf8+ {[%emt 0:00:07]} Bxf8 {[%emt 0:02:11]} 25. Rf1 {[%emt 0:00:43]} Qg6 {[%emt 0:04:36]} 26. Rf2 {[%emt 0:06:16]} Nh4 {[%emt 0:01:17]} 0-1

[Event "Summer Prague Open-A 2022"]
[Site "Prague"]
[Date "2022.08.07"]
[Round "4.20"]
[White "Carnot, Luca"]
[Black "Slampa, Jan"]
[Result "0-1"]
[ECO "A04"]
[WhiteElo "2035"]
[BlackElo "2254"]
[Annotator "RC"]
[PlyCount "129"]
[EventDate "2022.08.05"]
[EventType "swiss"]
[EventCountry "CZE"]
[SourceTitle "playchess.com"]
[Source "ChessBase"]
[SourceQuality "1"]
[TimeControl "40/5400+30:1800+30"]

1. Nf3 {[%emt 0:00:05]} c5 {[%emt 0:05:31]} 2. g3 {[%emt 0:00:02]} Nc6 {[%emt 0:00:05]} 3. Bg2 {[%emt 0:00:55]} Nf6 {[%emt 0:00:08]} 4. O-O {[%emt 0:01:12]} e5 {[%emt 0:00:13]} 5. d3 {[%emt 0:04:16]} d5 {[%emt 0:01:52]} 6. c4 {[%emt 0:00:36]} d4 {[%emt 0:02:48]} 7. e3 {[%emt 0:08:48]} Be7 {[%emt 0:03:38]} 8. exd4 {[%emt 0:01:38]} exd4 {[%emt 0:00:21]} 9. Bf4 {[%emt 0:07:48]} O-O {[%emt 0:01:05]} 10. Ne5 {[%emt 0:00:59]} Nxe5 {[%emt 0:06:14]} 11. Bxe5 {[%emt 0:00:03]} Ng4 {[%emt 0:00:30]} 12. Bf4 {[%emt 0:01:35]} g5 {[%emt 0:01:14]} 13. Bc1 {[%emt 0:14:18]} Qb6 {[%emt 0:05:01]} 14. Re1 {[%emt 0:03:07]} Qf6 {[%emt 0:02:21]} 15. Qe2 {[%emt 0:02:53]} Bd6 {[%emt 0:05:08]} 16. Nd2 {[%emt 0:02:12]} Qg6 {[%emt 0:18:07]} 17. Ne4 {[%emt 0:01:50]} Be7 {[%emt 0:00:56]} 18. Qd2 {[%emt 0:11:33]} h6 {[%emt 0:12:33]} 19. h3 {[%emt 0:01:56]} Ne5 {[%emt 0:04:22]} 20. Nxc5 {[%emt 0:05:11]} Bd6 {[%emt 0:05:06]} 21. Qd1 {[%emt 0:09:47]} Bf5 {[%emt 0:06:11]} 22. g4 {[%emt 0:12:44]} Bxd3 {[%emt 0:03:54]} 23. Rxe5 {[%emt 0:01:06]} Bc2 {[%emt 0:00:19]} 24. Qe1 {[%emt 0:04:48]} Bxe5 {[%emt 0:00:01]} 25. Qxe5 {[%emt 0:00:01]} Rfe8 {[%emt 0:00:01]} 26. Qxd4 {[%emt 0:00:33]} Rad8 {[%emt 0:00:47]} 27. Nd7 {[%emt 0:00:00]} Re1+ {[%emt 0:00:53]} 28. Kh2 {[%emt 0:00:38]} Rd1 {[%emt 0:01:13]} 29. Bd2 {[%emt 0:00:31]} Rxd7 {[%emt 0:06:34]} 30. Qxd7 {[%emt 0:00:34]} Rxa1 {[%emt 0:00:09]} 31. Qd8+ {[%emt 0:00:59]} Kh7 {[%emt 0:00:27]} 32. Bc3 {[%emt 0:00:45]} Qg8 {[%emt 0:01:17]} 33. Qd2 {[%emt 0:00:59]} Qb8+ {[%emt 0:00:43]} 34. f4 {[%emt 0:00:59]} Qxf4+ {[%emt 0:00:13]} 35. Qxf4 {[%emt 0:00:06]} gxf4 {[%emt 0:00:02]} 36. Bxb7 {[%emt 0:00:53]} Rxa2 {[%emt 0:04:40]} 37. Kg2 {[%emt 0:01:43]} Ra4 {[%emt 0:00:39]} 38. Kf3 {[%emt 0:00:52]} Rxc4 {[%emt 0:00:38]} 39. Bd5 {[%emt 0:00:02]} Rc7 {[%emt 0:00:41]} 40. Kxf4 {[%emt 0:00:41]} a5 {[%emt 0:00:32]} 41. Ke5 {[%emt 0:04:07]} a4 {[%emt 0:15:14]} 42. Bb4 {[%emt 0:06:28]} Kg6 {[%emt 0:00:57]} 43. Kd6 {[%emt 0:06:15]} Ra7 {[%emt 0:00:55]} 44. Bc5 {[%emt 0:01:27]} Ra6+ {[%emt 0:01:40]} 45. Ke5 {[%emt 0:04:43]} f6+ {[%emt 0:02:35]} 46. Kd4 {[%emt 0:00:21]} Kg5 {[%emt 0:00:16]} 47. Kc3 {[%emt 0:02:54]} Bd1 {[%emt 0:02:42]} 48. Be3+ {[%emt 0:03:42]} Kh4 {[%emt 0:00:29]} 49. Bxh6 {[%emt 0:00:52]} Kxh3 {[%emt 0:00:11]} 50. g5 {[%emt 0:00:12]} f5 {[%emt 0:01:19]} 51. Bf7 {[%emt 0:02:37]} Kh4 {[%emt 0:03:11]} 52. Kd4 {[%emt 0:00:56]} Bh5 {[%emt 0:00:22]} 53. Bd5 {[%emt 0:00:23]} Bg6 {[%emt 0:00:29]} 54. Bc4 {[%emt 0:02:17]} Rb6 {[%emt 0:00:30]} 55. Kc3 {[%emt 0:00:34]} f4 {[%emt 0:00:18]} 56. Be2 {[%emt 0:00:27]} f3 {[%emt 0:00:13]} 57. Bf1 {[%emt 0:00:36]} Rd6 {[%emt 0:01:01]} 58. Bb5 {[%emt 0:00:29]} f2 {[%emt 0:00:13]} 59. Bf8 {[%emt 0:00:03]} Rd1 {[%emt 0:00:32]} 60. Kb4 {[%emt 0:00:42]} f1=Q {[%emt 0:00:19]} 61. Bxf1 {[%emt 0:00:03]} Rxf1 {[%emt 0:00:12]} 62. Be7 {[%emt 0:00:41]} Rf4+ {[%emt 0:00:16]} 63. Kc3 {[%emt 0:00:57]} Kg4 {[%emt 0:00:09]} 64. b3 {[%emt 0:00:33]} Rf3+ {[%emt 0:00:15]} 65. Kd4 0-1

[Event "Summer Prague Open-A 2022"]
[Site "Prague"]
[Date "2022.08.07"]
[Round "4.21"]
[White "Nemeth, Zalan"]
[Black "Fiskaaen, Martin Holten"]
[Result "0-1"]
[ECO "B62"]
[WhiteElo "2194"]
[BlackElo "1930"]
[Annotator "RC"]
[PlyCount "78"]
[EventDate "2022.08.05"]
[EventType "swiss"]
[EventCountry "CZE"]
[SourceTitle "playchess.com"]
[Source "ChessBase"]
[SourceQuality "1"]
[TimeControl "40/5400+30:1800+30"]

1. e4 {[%emt 0:00:32]} c5 {[%emt 0:00:15]} 2. Nf3 {[%emt 0:00:02]} d6 {[%emt 0:00:11]} 3. d4 {[%emt 0:00:04]} cxd4 {[%emt 0:00:06]} 4. Nxd4 {[%emt 0:00:02]} Nf6 {[%emt 0:00:17]} 5. Nc3 {[%emt 0:00:03]} Nc6 {[%emt 0:00:16]} 6. Bg5 {[%emt 0:00:04]} e6 {[%emt 0:00:26]} 7. Qd3 {[%emt 0:00:07]} Be7 {[%emt 0:01:04]} 8. O-O-O {[%emt 0:00:06]} O-O {[%emt 0:00:27]} 9. Ndb5 {[%emt 0:00:24]} Qb6 {[%emt 0:25:53]} 10. Be3 {[%emt 0:30:45]} Qa5 {[%emt 0:03:25]} 11. f4 {[%emt 0:01:38]} Rd8 {[%emt 0:13:51]} 12. a3 {[%emt 0:00:15]} Rd7 {[%emt 0:06:12]} 13. Be2 {[%emt 0:07:39]} a6 {[%emt 0:02:20]} 14. Nd4 {[%emt 0:03:06]} Nxd4 {[%emt 0:00:41]} 15. Bxd4 {[%emt 0:00:32]} b5 {[%emt 0:00:33]} 16. Bf3 {[%emt 0:00:58]} e5 {[%emt 0:05:49]} 17. Be3 {[%emt 0:00:27]} b4 {[%emt 0:01:57]} 18. axb4 {[%emt 0:01:25]} Qxb4 {[%emt 0:00:15]} 19. fxe5 {[%emt 0:11:50]} dxe5 {[%emt 0:00:46]} 20. Nd5 {[%emt 0:00:54]} Rxd5 {[%emt 0:11:50]} 21. exd5 {[%emt 0:00:09]} e4 {[%emt 0:00:10]} 22. Bxe4 {[%emt 0:07:20]} Nxe4 {[%emt 0:00:54]} 23. Rhf1 {[%emt 0:05:43]} Rb8 {[%emt 0:01:21]} 24. Qd4 {[%emt 0:01:31]} Bc5 {[%emt 0:04:43]} 25. Qxb4 {[%emt 0:03:37]} Bxe3+ {[%emt 0:00:09]} 26. Qd2 {[%emt 0:00:30]} Nxd2 {[%emt 0:01:07]} 27. Rxd2 {[%emt 0:00:04]} Bxd2+ {[%emt 0:01:22]} 28. Kxd2 {[%emt 0:00:01]} Rxb2 {[%emt 0:00:19]} 29. Kc3 {[%emt 0:00:06]} Rb8 {[%emt 0:01:29]} 30. Kd4 {[%emt 0:00:20]} Kf8 {[%emt 0:01:43]} 31. Re1 {[%emt 0:00:07]} Bd7 {[%emt 0:04:21]} 32. c4 {[%emt 0:00:17]} a5 {[%emt 0:01:05]} 33. Kc5 {[%emt 0:02:03]} a4 {[%emt 0:02:52]} 34. Kd6 {[%emt 0:00:05]} Bf5 {[%emt 0:00:14]} 35. c5 {[%emt 0:00:39]} a3 {[%emt 0:00:45]} 36. Ra1 {[%emt 0:03:24]} Be4 {[%emt 0:03:37]} 37. Rxa3 {[%emt 0:01:24]} Rd8+ {[%emt 0:00:28]} 38. Ke5 {[%emt 0:00:29]} Bxd5 {[%emt 0:01:21]} 39. Rd3 {[%emt 0:00:08]} f6+ {[%emt 0:00:13]} 0-1

[Event "Summer Prague Open-A 2022"]
[Site "Prague"]
[Date "2022.08.07"]
[Round "4.22"]
[White "Polster, Christian"]
[Black "Philipp, Mathias"]
[Result "1/2-1/2"]
[ECO "A94"]
[WhiteElo "2236"]
[BlackElo "2092"]
[Annotator "RC"]
[PlyCount "74"]
[EventDate "2022.08.05"]
[EventType "swiss"]
[EventCountry "CZE"]
[SourceTitle "playchess.com"]
[Source "ChessBase"]
[SourceQuality "1"]
[TimeControl "40/5400+30:1800+30"]

1. d4 {[%emt 0:00:04]} f5 {[%emt 0:00:05]} 2. g3 {[%emt 0:06:11]} Nf6 {[%emt 0:02:53]} 3. Bg2 {[%emt 0:00:14]} e6 {[%emt 0:00:03]} 4. Nf3 {[%emt 0:00:28]} d5 {[%emt 0:00:05]} 5. O-O {[%emt 0:00:48]} Be7 {[%emt 0:00:02]} 6. c4 {[%emt 0:00:53]} c6 {[%emt 0:00:08]} 7. b3 {[%emt 0:03:50]} O-O {[%emt 0:01:28]} 8. Ba3 {[%emt 0:01:45]} Nbd7 {[%emt 0:00:06]} 9. Bxe7 {[%emt 0:06:09]} Qxe7 {[%emt 0:00:05]} 10. Nc3 {[%emt 0:00:10]} b6 {[%emt 0:04:03]} 11. Rc1 {[%emt 0:03:36]} Bb7 {[%emt 0:00:44]} 12. cxd5 {[%emt 0:06:16]} exd5 {[%emt 0:00:07]} 13. Ne1 {[%emt 0:03:36]} Rae8 {[%emt 0:03:02]} 14. Nd3 {[%emt 0:02:37]} Ne4 {[%emt 0:00:12]} 15. e3 {[%emt 0:03:10]} a5 {[%emt 0:01:30]} 16. Na4 {[%emt 0:02:32]} Rf6 {[%emt 0:01:29]} 17. Re1 {[%emt 0:01:25]} Kh8 {[%emt 0:03:51]} 18. f3 {[%emt 0:04:45]} Nd6 {[%emt 0:00:54]} 19. Ne5 {[%emt 0:05:04]} Nxe5 {[%emt 0:01:41]} 20. dxe5 {[%emt 0:00:03]} Qxe5 {[%emt 0:00:05]} 21. Nxb6 {[%emt 0:00:14]} Qe7 {[%emt 0:05:52]} 22. Qd2 {[%emt 0:05:50]} Re6 {[%emt 0:00:24]} 23. Kf2 {[%emt 0:02:16]} Nb5 {[%emt 0:01:54]} 24. Na4 {[%emt 0:04:12]} Rh6 {[%emt 0:13:36]} 25. Nc5 {[%emt 0:09:54]} Rxh2 {[%emt 0:04:43]} 26. a4 {[%emt 0:04:33]} Nd6 {[%emt 0:01:11]} 27. Qxa5 {[%emt 0:00:45]} Bc8 {[%emt 0:05:08]} 28. Nd3 {[%emt 0:03:19]} Rh6 {[%emt 0:02:27]} 29. Qb4 {[%emt 0:02:14]} Rf6 {[%emt 0:02:50]} 30. Qd4 {[%emt 0:06:20]} Kg8 {[%emt 0:02:43]} 31. Kg1 {[%emt 0:00:50]} Bd7 {[%emt 0:08:32]} 32. Nc5 {[%emt 0:05:51]} Qf7 {[%emt 0:06:50]} 33. b4 {[%emt 0:03:06]} f4 {[%emt 0:02:22]} 34. exf4 {[%emt 0:01:39]} Nf5 {[%emt 0:00:37]} 35. Qf2 {[%emt 0:00:27]} d4 {[%emt 0:02:31]} 36. Ne4 {[%emt 0:01:07]} Rg6 {[%emt 0:00:50]} 37. Ng5 {[%emt 0:01:57]} Qb3 1/2-1/2

[Event "Summer Prague Open-A 2022"]
[Site "Prague"]
[Date "2022.08.07"]
[Round "4.23"]
[White "Lhotska, Anna"]
[Black "Pap, Gyula"]
[Result "1/2-1/2"]
[ECO "B13"]
[WhiteElo "2113"]
[BlackElo "2481"]
[Annotator "TA"]
[PlyCount "30"]
[EventDate "2022.08.05"]
[EventType "swiss"]
[EventCountry "CZE"]
[SourceTitle "playchess.com"]
[Source "ChessBase"]
[SourceQuality "1"]
[TimeControl "40/5400+30:1800+30"]

{[%evp 17,30,8,27,6,44,-12,35,25,40,46,52,54,66,55,68]} 1. e4 {[%emt 0:00:04]} c6 {[%emt 0:02:03]} 2. d4 {[%emt 0:00:16]} d5 {[%emt 0:00:08]} 3. exd5 {[%emt 0:00:24]} cxd5 {[%emt 0:00:08]} 4. Bd3 {[%emt 0:00:08]} Nc6 {[%emt 0:00:38]} 5. c3 {[%emt 0:00:07]} Nf6 {[%emt 0:00:12]} 6. h3 {[%emt 0:00:23]} g6 {[%emt 0:04:03]} 7. Nf3 {[%emt 0:00:50]} Bf5 {[%emt 0:00:37]} 8. O-O {[%emt 0:01:26] 8.Be2 is the hot move.} Bg7 {[%emt 0:00:09]} 9. Re1 {[%emt 0:01:34]} O-O {[%emt 0:04:54]} 10. Bf4 {[%emt 0:02:16] B13: Caro-Kann: Exchange Variation and Panov-Botvinnik Attack.} Qb6 {[%emt 0:02:39]} 11. Re2 {[%emt 0:07:57] [#]} (11. Bxf5 $14 gxf5 12. Qb3) 11... Ne4 $146 {[%emt 0:03:12]} (11... Be4 $11 {deserves consideration.}) ({Predecessor:} 11... Rac8 12. Bxf5 gxf5 13. Qb3 Qa6 14. Re1 e6 15. Ne5 Nh5 16. Nxc6 Rxc6 17. Bg5 Kh8 {0-1 (41) Tong,K (2049)-Walter,T (2177) Fuerth 2016}) 12. Nh4 {[%emt 0:12:31]} Bd7 {[%emt 0:32:08]} 13. Nd2 {[%emt 0:11:03] White is slightly better.} f5 {[%emt 0:07:14]} 14. Nhf3 {[%emt 0:05:22] Prevents g5.} e6 {[%emt 0:01:20]} 15. Nb3 {[%emt 0:02:04]} Rae8 {[%emt 0:02:19] Weighted Error Value: White=0.19 (very precise) /Black=0.21 (precise)} 1/2-1/2